bitfinex/quotes_BTCUSD_20220101
["timestamp","ask_amount","ask_price","bid_price","bid_amount"]
[1641028157548,0.2,47189.0,47185.0,0.02131527]
[1641028158009,0.053004,47187.0,47180.0,0.30372848]
[1641028158209,0.07358195,47187.0,47181.0,0.34066926]
[1641028158413,0.07358195,47187.0,47181.0,0.00163116]
[1641028159010,0.053004,47187.0,47181.0,0.02187778]
[1641028159212,0.03282798,47182.0,47181.0,0.02187778]
[1641028160012,0.03282798,47182.0,47181.0,0.00163116]
[1641028160214,0.03282798,47182.0,47181.0,0.34101616]
[1641028161019,0.03282798,47182.0,47181.0,0.35916542]
[1641028161872,0.03268683,47182.0,47181.0,0.38073779]
[1641028162872,0.03268683,47182.0,47181.0,0.0597338]
[1641028163072,0.03268683,47182.0,47181.0,0.01872791]
[1641028164274,0.03268683,47182.0,47181.0,0.0003469]
[1641028164675,0.03268683,47182.0,47178.0,0.00040167]
[1641028164877,0.106005,47186.0,47178.0,0.00040167]
[1641028164878,0.053003,47181.0,47178.0,0.00040167]
[1641028165086,0.10601,47183.0,47181.0,0.156997]
[1641028165502,0.10601,47183.0,47182.0,0.00032864]
[1641028165703,0.1,47186.0,47182.0,0.00032864]
[1641028165903,0.05,47183.0,47182.0,0.00032864]
[1641028166105,0.106012,47184.0,47182.0,0.00032864]
[1641028166306,0.156012,47184.0,47182.0,0.00032864]
[1641028166903,0.053005,47183.0,47182.0,0.00032864]
[1641028168605,0.05,47184.0,47182.0,0.00032864]
[1641028169004,0.05,47186.0,47182.0,0.00032864]
[1641028169273,0.206002,47187.0,47182.0,0.00032864]
[1641028169469,0.339385,47186.0,47182.0,0.00032864]
[1641028169676,0.339385,47186.0,47183.0,0.00118666]
[1641028169871,0.053004,47185.0,47183.0,0.00118666]
[1641028170071,0.339385,47184.0,47183.0,0.00118666]
[1641028170471,0.489385,47184.0,47183.0,0.00149704]
[1641028171871,0.51048743,47184.0,47183.0,0.00149704]
[1641028172071,0.51023244,47184.0,47183.0,0.00149704]
[1641028172472,0.48913001,47184.0,47183.0,0.00149704]
[1641028173115,0.50753914,47184.0,47183.0,0.00149704]
[1641028173517,0.61355214,47184.0,47183.0,0.00149704]
[1641028173916,0.61695377,47184.0,47183.0,0.00149704]
[1641028174317,0.46404479,47184.0,47183.0,0.00149704]
[1641028174516,0.35803179,47184.0,47183.0,0.00149704]
[1641028174717,0.01864679,47184.0,47183.0,0.00149704]
[1641028175117,0.01864679,47184.0,47183.0,0.28549731]
[1641028175319,0.01924904,47184.0,47183.0,0.90177183]
[1641028176019,0.01924904,47184.0,47183.0,0.92261575]
[1641028176219,0.312654,47194.0,47183.0,0.92261575]
[1641028176419,0.6917241,47200.0,47191.0,0.26348679]
[1641028176682,0.339385,47199.0,47191.0,0.26348679]
[1641028176867,0.339385,47199.0,47192.0,0.00014606]
[1641028177269,0.02178745,47194.0,47192.0,0.22568725]
[1641028177468,0.02178745,47194.0,47192.0,0.00014606]
[1641028177668,0.02178745,47194.0,47193.0,0.00012781]
[1641028177868,0.02178745,47194.0,47192.0,0.00014606]
[1641028178867,0.07477845,47194.0,47192.0,0.00014606]
[1641028179270,0.052991,47194.0,47192.0,0.00014606]
[1641028179468,0.102991,47194.0,47192.0,0.00014606]
[1641028179668,0.052991,47194.0,47192.0,0.00014606]
[1641028184567,0.052991,47194.0,47192.0,0.21014606]
[1641028184968,0.052991,47194.0,47193.0,0.00012781]
[1641028186366,0.052991,47194.0,47193.0,0.22864832]
[1641028186568,0.052987,47196.0,47193.0,0.22927808]
[1641028186767,0.052987,47196.0,47193.0,0.00012781]
[1641028186970,0.052987,47196.0,47194.0,0.00010955]
[1641028187166,0.052987,47196.0,47193.0,0.00012781]
[1641028187372,0.052987,47196.0,47195.0,0.28418829]
[1641028187567,0.12370362,47201.0,47195.0,0.88294199]
[1641028187768,0.12370362,47201.0,47196.0,0.339385]
[1641028187769,0.00756386,47198.0,47196.0,0.339385]
[1641028188015,0.00756386,47198.0,47197.0,0.24986038]
[1641028188214,0.00756386,47198.0,47197.0,1.22487538]
[1641028189219,0.00756386,47198.0,47197.0,1.24414087]
[1641028190119,0.00756386,47198.0,47197.0,1.26369342]
[1641028190316,0.00756386,47198.0,47197.0,1.24442793]
[1641028191116,0.00756386,47198.0,47197.0,1.26566716]
[1641028191316,0.1026723,47201.0,47197.0,1.26566716]
[1641028191317,0.1026723,47201.0,47197.0,1.24611461]
[1641028191516,0.1026723,47201.0,47198.0,0.392358]
[1641028191754,0.1026723,47201.0,47199.0,0.63561]
[1641028191959,0.1026723,47201.0,47200.0,0.5986177]
[1641028192156,0.1026723,47201.0,47200.0,0.59987618]
[1641028193154,0.1026723,47201.0,47200.0,0.62092746]
[1641028194256,0.1026723,47201.0,47200.0,0.64224252]
[1641028194454,0.1026723,47201.0,47200.0,0.62119124]
[1641028195156,0.1026723,47201.0,47200.0,0.64071191]
[1641028195397,0.1026723,47201.0,47200.0,0.61939685]
[1641028196299,0.1026723,47201.0,47200.0,0.63814712]
[1641028196503,0.1026723,47201.0,47200.0,0.61862645]
[1641028196900,0.1026723,47201.0,47200.0,0.61607076]
[1641028197202,0.1026723,47201.0,47200.0,0.63432471]
[1641028197403,0.1026723,47201.0,47200.0,0.61557444]
[1641028198002,0.1026723,47201.0,47200.0,0.01825395]
[1641028198202,0.1026723,47201.0,47200.0,0.03997677]
[1641028198401,0.1026723,47201.0,47200.0,0.02172282]
[1641028199468,0.1026723,47201.0,47199.0,0.65533516]
[1641028200268,0.1026723,47201.0,47199.0,0.6759285]
[1641028200669,0.052983,47200.0,47199.0,0.6759285]
[1641028201169,0.052983,47200.0,47199.0,0.63561]
[1641028201474,0.052983,47200.0,47199.0,0.65444381]
[1641028202271,0.052983,47200.0,47199.0,0.67262176]
[1641028202472,0.052983,47200.0,47199.0,0.65378795]
[1641028203321,0.052983,47200.0,47199.0,0.67546834]
[1641028203522,0.052983,47200.0,47199.0,0.65729039]
[1641028204524,0.052983,47200.0,47199.0,0.67642162]
[1641028204724,0.052983,47200.0,47199.0,0.63561]
[1641028205622,0.052983,47200.0,47199.0,0.65588634]
[1641028206859,0.052983,47200.0,47199.0,0.67592459]
[1641028207260,0.052983,47200.0,47199.0,0.63561]
[1641028207457,0.052983,47200.0,47199.0,0.65478586]
[1641028208463,0.052983,47200.0,47199.0,0.67285152]
[1641028208861,0.052983,47200.0,47199.0,0.63561]
[1641028209264,0.052983,47200.0,47199.0,0.6558774]
[1641028210264,0.052983,47200.0,47199.0,0.67560848]
[1641028210508,0.052983,47200.0,47199.0,0.65534108]
[1641028211907,0.052983,47200.0,47199.0,0.67400506]
[1641028212106,0.052983,47200.0,47199.0,0.65427398]
[1641028212308,0.052983,47200.0,47199.0,0.67247272]
[1641028213111,0.052983,47200.0,47199.0,0.63561]
[1641028213309,0.052983,47200.0,47199.0,0.6540188]
[1641028213509,0.08566983,47200.0,47199.0,0.6540188]
[1641028213709,0.13566983,47200.0,47199.0,0.6540188]
[1641028214173,0.18566983,47200.0,47199.0,0.6540188]
[1641028214367,0.18566983,47200.0,47199.0,0.67271551]
[1641028214566,0.52470975,47200.0,47199.0,0.65430671]
[1641028214972,0.62470975,47200.0,47199.0,0.65430671]
[1641028215368,0.62470975,47200.0,47199.0,0.67420253]
[1641028215771,0.64408486,47200.0,47199.0,0.65550582]
[1641028216369,0.64408486,47200.0,47199.0,0.67740625]
[1641028216570,0.62470975,47200.0,47199.0,0.65751043]
[1641028217071,0.64502906,47200.0,47199.0,0.65751043]
[1641028217471,0.64502906,47200.0,47199.0,0.67593971]
[1641028217671,0.64275736,47200.0,47199.0,0.65403928]
[1641028217902,0.84275736,47200.0,47199.0,0.65403928]
[1641028218505,0.84275736,47200.0,47199.0,0.6755577]
[1641028218704,0.84507903,47200.0,47199.0,0.65712842]
[1641028219506,0.84507903,47200.0,47199.0,0.67618787]
[1641028219705,0.84287141,47200.0,47199.0,0.65466945]
[1641028219910,0.2,47198.0,47188.0,0.0093922]
[1641028220106,0.339295,47194.0,47188.0,0.0093922]
[1641028220309,0.279863,47193.0,47188.0,0.0093922]
[1641028220507,0.329863,47193.0,47188.0,0.0093922]
[1641028220709,0.64606349,47193.0,47192.0,0.21014606]
[1641028220911,1.06188843,47193.0,47192.0,0.21014606]
[1641028221509,1.08101937,47193.0,47192.0,0.21014606]
[1641028222481,0.78507746,47193.0,47192.0,0.21014606]
[1641028222682,0.46118086,47193.0,47192.0,0.21014606]
[1641028223488,0.4792254,47193.0,47192.0,0.21014606]
[1641028223683,0.45896682,47193.0,47192.0,0.21014606]
[1641028224382,0.7635628,47193.0,47192.0,0.21014606]
[1641028224582,0.76484422,47193.0,47192.0,0.21014606]
[1641028225419,0.775679,47193.0,47192.0,0.21014606]
[1641028226223,0.73445898,47193.0,47192.0,0.21014606]
[1641028226420,0.429863,47193.0,47192.0,0.21014606]
[1641028226622,0.45077206,47193.0,47192.0,0.21014606]
[1641028226822,0.30077206,47193.0,47192.0,0.21014606]
[1641028227120,0.30077206,47193.0,47192.0,0.21133249]
[1641028227523,0.31952178,47193.0,47192.0,0.21133249]
[1641028227722,0.29861272,47193.0,47192.0,0.21133249]
[1641028227922,0.39861272,47193.0,47192.0,0.21133249]
[1641028228120,0.49861272,47193.0,47192.0,0.21133249]
[1641028228721,0.479863,47193.0,47192.0,0.21133249]
[1641028229558,0.50027917,47193.0,47192.0,0.21133249]
[1641028230965,0.50027917,47193.0,47192.0,0.21014606]
[1641028231170,0.52109998,47193.0,47192.0,0.21014606]
[1641028231361,0.50068381,47193.0,47192.0,0.21014606]
[1641028231561,0.51954236,47193.0,47192.0,0.21014606]
[1641028231760,0.49872155,47193.0,47192.0,0.21014606]
[1641028231961,0.49872155,47193.0,47192.0,0.21005526]
[1641028232362,0.49872155,47193.0,47192.0,0.21124169]
[1641028232562,0.51901365,47193.0,47192.0,0.21124169]
[1641028232763,0.5001551,47193.0,47192.0,0.21124169]
[1641028233620,0.52049285,47193.0,47192.0,0.21124169]
[1641028233819,0.50020075,47193.0,47192.0,0.21124169]
[1641028234621,0.52188156,47193.0,47192.0,0.21124169]
[1641028234819,0.50154381,47193.0,47192.0,0.21124169]
[1641028235623,0.52342628,47193.0,47192.0,0.21124169]
[1641028235824,0.50174547,47193.0,47192.0,0.21124169]
[1641028236675,0.52101948,47193.0,47192.0,0.21124169]
[1641028236867,0.49913701,47193.0,47192.0,0.21124169]
[1641028237470,0.69913701,47193.0,47192.0,0.21124169]
[1641028238269,0.71764776,47193.0,47192.0,0.21124169]
[1641028238571,0.71746212,47193.0,47192.0,0.21124169]
[1641028238768,0.69895137,47193.0,47192.0,0.21124169]
[1641028239669,0.7185021,47193.0,47192.0,0.21124169]
[1641028239870,0.69941373,47193.0,47192.0,0.21124169]
[1641028240071,0.69913146,47193.0,47192.0,0.21124169]
[1641028240517,0.49913146,47193.0,47192.0,0.21124169]
[1641028241319,0.51728947,47193.0,47192.0,0.21124169]
[1641028241520,0.49773874,47193.0,47192.0,0.21124169]
[1641028241718,0.51961861,47193.0,47192.0,0.21124169]
[1641028241918,0.5014606,47193.0,47192.0,0.21124169]
[1641028242618,0.52024992,47193.0,47192.0,0.21124169]
[1641028242818,0.49837005,47193.0,47192.0,0.21124169]
[1641028243818,0.50129371,47193.0,47192.0,0.21124169]
[1641028244667,0.51983142,47193.0,47192.0,0.21124169]
[1641028244866,0.49811844,47193.0,47192.0,0.21124169]
[1641028245667,0.5178796,47193.0,47192.0,0.21124169]
[1641028245866,0.49934189,47193.0,47192.0,0.21124169]
[1641028246767,0.51864157,47193.0,47192.0,0.21124169]
[1641028246967,0.53156724,47193.0,47192.0,0.21124169]
[1641028247168,0.25170424,47193.0,47192.0,0.21124169]
[1641028247568,0.15170424,47193.0,47192.0,0.21124169]
[1641028247922,0.15157731,47193.0,47192.0,0.21124169]
[1641028248824,0.13240456,47193.0,47192.0,0.21124169]
[1641028249625,0.03268683,47193.0,47192.0,0.45455243]
[1641028249827,0.02083615,47197.0,47192.0,0.55053669]
[1641028250026,0.01092087,47197.0,47192.0,0.21124169]
[1641028250226,0.01092087,47197.0,47193.0,0.00012781]
[1641028250726,0.01092087,47197.0,47194.0,0.3080404]
[1641028250930,0.03268683,47195.0,47194.0,0.3080404]
[1641028251128,0.03268683,47195.0,47194.0,0.6473354]
[1641028253276,0.03268683,47195.0,47194.0,0.3080404]
[1641028255270,0.03268683,47195.0,47194.0,0.6473354]
[1641028255720,0.03268683,47195.0,47194.0,0.8811522]
[1641028256319,0.03268683,47195.0,47194.0,0.5731118]
[1641028256722,0.03243183,47195.0,47194.0,0.5731118]
[1641028257723,0.03243183,47195.0,47194.0,0.2338168]
[1641028258124,0.03243183,47195.0,47192.0,0.2099092]
[1641028258422,0.00756361,47198.0,47194.0,0.00118638]
[1641028258723,0.339295,47197.0,47195.0,9.129e-05]
[1641028259186,0.052991,47196.0,47195.0,9.129e-05]
[1641028259374,0.392286,47196.0,47195.0,9.129e-05]
[1641028260774,0.41133276,47196.0,47195.0,9.129e-05]
[1641028261676,0.56133276,47196.0,47195.0,9.129e-05]
[1641028262478,0.58175803,47196.0,47195.0,9.129e-05]
[1641028262676,0.56271127,47196.0,47195.0,9.129e-05]
[1641028263615,0.56404467,47196.0,47195.0,9.129e-05]
[1641028263814,0.56404467,47196.0,47195.0,0.00127764]
[1641028264015,0.41404467,47196.0,47195.0,0.00127764]
[1641028264515,0.43280439,47196.0,47195.0,0.00127764]
[1641028264716,0.41104572,47196.0,47195.0,0.00127764]
[1641028264916,0.43280045,47196.0,47195.0,0.00127764]
[1641028265116,0.41404073,47196.0,47195.0,0.00127764]
[1641028265916,0.43374469,47196.0,47195.0,0.00127764]
[1641028266767,0.392286,47196.0,47195.0,0.00127764]
[1641028266968,0.41388944,47196.0,47195.0,0.00127764]
[1641028267370,0.07459444,47196.0,47195.0,0.00127764]
[1641028267967,0.09364971,47196.0,47195.0,0.00127764]
[1641028268369,0.07204627,47196.0,47195.0,0.00127764]
[1641028268768,0.41134127,47196.0,47195.0,0.00127764]
[1641028268970,0.392286,47196.0,47195.0,0.00127764]
[1641028269871,0.41303453,47196.0,47195.0,0.00127764]
[1641028270932,0.43146257,47196.0,47195.0,0.00127764]
[1641028271133,0.41071404,47196.0,47195.0,0.00127764]
[1641028271932,0.43017266,47196.0,47195.0,0.00127764]
[1641028272131,0.41174462,47196.0,47195.0,0.00127764]
[1641028273533,0.43102628,47196.0,47195.0,0.00127764]
[1641028273733,0.41156766,47196.0,47195.0,0.00127764]
[1641028273934,0.03856358,47196.0,47195.0,0.00127764]
[1641028275269,0.00756386,47198.0,47195.0,0.00127764]
[1641028275669,0.00756386,47198.0,47196.0,7.303e-05]
[1641028275870,0.052986,47197.0,47196.0,7.303e-05]
[1641028279016,0.25652229,47199.0,47196.0,7.303e-05]
[1641028279516,0.20353829,47199.0,47196.0,7.303e-05]
[1641028280918,0.052985,47198.0,47196.0,7.303e-05]
[1641028284869,0.339295,47197.0,47196.0,7.303e-05]
[1641028286030,0.3582751,47197.0,47196.0,7.303e-05]
[1641028287030,0.37940813,47197.0,47196.0,7.303e-05]
[1641028287930,0.339295,47197.0,47196.0,7.303e-05]
[1641028288131,0.35746218,47197.0,47196.0,7.303e-05]
[1641028288935,0.37844101,47197.0,47196.0,7.303e-05]
[1641028289371,0.37844101,47197.0,47196.0,0.00125936]
[1641028289770,0.339295,47197.0,47196.0,0.00125936]
[1641028290172,0.35997468,47197.0,47196.0,0.00125936]
[1641028291077,0.38110111,47197.0,47196.0,0.00125936]
[1641028291273,0.36042143,47197.0,47196.0,0.00125936]
[1641028292174,0.35983502,47197.0,47196.0,0.00125936]
[1641028293627,0.38013911,47197.0,47196.0,0.00125936]
[1641028293824,0.35959909,47197.0,47196.0,0.00125936]
[1641028294724,0.37783252,47197.0,47196.0,0.00125936]
[1641028294924,0.35752843,47197.0,47196.0,0.00125936]
[1641028295124,0.37598796,47197.0,47196.0,0.00125936]
[1641028295323,0.35775453,47197.0,47196.0,0.00125936]
[1641028296128,0.37717452,47197.0,47196.0,0.00125936]
[1641028296326,0.35871499,47197.0,47196.0,0.00125936]
[1641028297175,0.36045374,47197.0,47196.0,0.00125936]
[1641028297775,0.36019872,47197.0,47196.0,0.00125936]
[1641028298180,0.42872719,47197.0,47196.0,0.00125936]
[1641028298377,0.40756845,47197.0,47196.0,0.00125936]
[1641028299180,0.42940988,47197.0,47196.0,0.00125936]
[1641028299380,0.41088141,47197.0,47196.0,0.00125936]
[1641028300181,0.43139814,47197.0,47196.0,0.00125936]
[1641028300439,0.40955671,47197.0,47196.0,0.00125936]
[1641028301042,0.42872966,47197.0,47196.0,0.00125936]
[1641028301349,0.40821293,47197.0,47196.0,0.00125936]
[1641028302243,0.42763039,47197.0,47196.0,0.00125936]
[1641028302444,0.40845744,47197.0,47196.0,0.00125936]
[1641028303243,0.41056116,47197.0,47196.0,0.00125936]
[1641028304264,0.42909166,47197.0,47196.0,0.00125936]
[1641028305064,0.57909166,47197.0,47196.0,0.00125936]
[1641028305265,0.55806682,47197.0,47196.0,0.00125936]
[1641028305664,0.55806682,47197.0,47196.0,0.00118633]
[1641028306267,0.75898725,47197.0,47196.0,0.00118633]
[1641028306667,1.04244321,47197.0,47196.0,0.00118633]
[1641028307167,1.0625823,47197.0,47196.0,0.00118633]
[1641028307367,1.44504251,47197.0,47196.0,0.00118633]
[1641028308026,1.44504251,47197.0,47189.0,0.00942596]
[1641028308027,0.053008,47191.0,47189.0,0.00942596]
[1641028308225,0.53654379,47190.0,47189.0,0.00942596]
[1641028308427,0.58654379,47190.0,47189.0,0.00942596]
[1641028308624,1.08692911,47190.0,47189.0,0.00418347]
[1641028308825,1.35913503,47190.0,47189.0,0.00418347]
[1641028309030,1.25923503,47190.0,47189.0,0.00418347]
[1641028309224,1.27726107,47190.0,47189.0,0.00418347]
[1641028310028,1.27726107,47190.0,47189.0,0.00265477]
[1641028310226,0.19723579,47188.0,47176.0,0.00011]
[1641028310425,0.053011,47184.0,47176.0,0.00011]
[1641028310627,0.053011,47184.0,47177.0,0.00041993]
[1641028310826,0.053011,47184.0,47183.0,0.00943261]
[1641028311027,0.392319,47184.0,47183.0,0.00943261]
[1641028311227,0.392319,47184.0,47183.0,0.00974299]
[1641028311431,0.492319,47184.0,47183.0,0.00974299]
[1641028312274,0.51353796,47184.0,47183.0,0.00031038]
[1641028313175,0.53248726,47184.0,47183.0,0.00031038]
[1641028313376,0.5112683,47184.0,47183.0,0.00031038]
[1641028314180,0.53144,47184.0,47183.0,0.00031038]
[1641028314378,0.5124907,47184.0,47183.0,0.00031038]
[1641028315178,0.53427865,47184.0,47183.0,0.00031038]
[1641028315423,0.51410695,47184.0,47183.0,0.00031038]
[1641028316224,0.53371082,47184.0,47179.0,0.00038342]
[1641028316426,0.53371082,47184.0,47183.0,0.21]
[1641028316427,0.17261487,47184.0,47183.0,0.21]
[1641028316626,0.07261487,47184.0,47183.0,0.21]
[1641028316827,0.07261487,47184.0,47183.0,0.21031038]
[1641028317424,0.053011,47184.0,47183.0,0.21031038]
[1641028320180,0.03876762,47185.0,47183.0,0.45053505]
[1641028320380,0.03876762,47185.0,47184.0,0.24645256]
[1641028320580,0.03876762,47185.0,47184.0,0.24674469]
[1641028321180,0.052998,47186.0,47184.0,0.24674469]
[1641028321580,0.052998,47186.0,47185.0,0.00027387]
[1641028321780,0.04159889,47187.0,47185.0,0.00027387]
[1641028321983,0.04159889,47187.0,47186.0,0.24366006]
[1641028322180,0.052996,47188.0,47186.0,0.49284456]
[1641028322381,0.052996,47188.0,47187.0,0.24084465]
[1641028322580,0.052996,47188.0,47187.0,0.241082]
[1641028323321,0.052993,47190.0,47187.0,0.241082]
[1641028323723,0.052993,47190.0,47188.0,0.0002191]
[1641028326688,0.052993,47190.0,47187.0,0.00023735]
[1641028327084,0.339308,47189.0,47187.0,0.00023735]
[1641028327284,0.052997,47188.0,47184.0,0.00029213]
[1641028327784,0.105993,47192.0,47184.0,0.22882521]
[1641028327984,0.105993,47192.0,47184.0,0.26142196]
[1641028328183,0.105993,47192.0,47185.0,0.00027387]
[1641028328886,0.052994,47189.0,47185.0,0.00027387]
[1641028331321,0.061604,47189.0,47184.0,0.00029213]
[1641028331521,0.061604,47189.0,47184.0,0.22690676]
[1641028331724,0.061604,47189.0,47184.0,0.00029213]
[1641028331924,0.061604,47189.0,47185.0,0.00027387]
[1641028332123,0.061604,47189.0,47184.0,0.00029213]
[1641028332526,0.061604,47189.0,47184.0,0.23089762]
[1641028332728,0.97221458,47189.0,47184.0,0.23089762]
[1641028332926,0.97221458,47189.0,47185.0,0.00027387]
[1641028333527,0.0293115,47189.0,47185.0,0.00027387]
[1641028334184,0.0293115,47189.0,47184.0,0.22748483]
[1641028334185,0.0293115,47189.0,47184.0,0.22777696]
[1641028334379,0.0293115,47189.0,47185.0,0.00027387]
[1641028334579,0.00861,47189.0,47185.0,0.00027387]
[1641028336083,0.00861,47189.0,47184.0,0.22948659]
[1641028336280,0.00861,47189.0,47185.0,0.00027387]
[1641028339721,0.052995,47188.0,47185.0,0.00027387]
[1641028339921,0.052995,47188.0,47184.0,0.00029213]
[1641028343008,0.00861,47189.0,47184.0,0.00029213]
[1641028346528,0.061605,47189.0,47184.0,0.00029213]
[1641028346727,0.00861,47189.0,47184.0,0.00029213]
[1641028347835,0.052997,47187.0,47184.0,0.00029213]
[1641028349034,0.84318126,47186.0,47184.0,0.00029213]
[1641028349272,0.89617926,47186.0,47184.0,0.00029213]
[1641028350075,0.83818126,47185.0,47184.0,0.00029213]
[1641028350873,0.19690593,47185.0,47184.0,0.00029213]
[1641028352475,0.19690593,47185.0,47184.0,0.22821131]
[1641028353421,0.01999575,47188.0,47184.0,0.22821131]
[1641028353422,0.19690593,47187.0,47184.0,0.22821131]
[1641028353822,0.19690593,47187.0,47185.0,0.00027387]
[1641028354219,0.19690593,47188.0,47185.0,0.00027387]
[1641028356422,0.24990193,47188.0,47185.0,0.00027387]
[1641028356695,0.05,47187.0,47185.0,0.00027387]
[1641028356879,0.05429919,47186.0,47184.0,0.00029213]
[1641028357078,0.389308,47185.0,47183.0,0.21]
[1641028357479,0.539308,47185.0,47183.0,0.21]
[1641028357679,0.80544083,47184.0,47183.0,0.21]
[1641028357878,0.42474883,47184.0,47183.0,0.21]
[1641028358079,0.72165476,47184.0,47183.0,0.21031038]
[1641028358779,0.73987085,47184.0,47183.0,0.21031038]
[1641028358980,1.70386724,47184.0,47183.0,0.21031038]
[1641028359382,1.50696131,47184.0,47183.0,0.21031038]
[1641028359584,1.722967,47184.0,47183.0,0.21031038]
[1641028359784,1.70475091,47184.0,47183.0,0.21031038]
[1641028360187,0.74075452,47184.0,47183.0,0.21031038]
[1641028360623,0.76144223,47184.0,47183.0,0.21031038]
[1641028360825,1.70633886,47184.0,47183.0,0.21031038]
[1641028361223,0.64234247,47184.0,47183.0,0.21031038]
[1641028361422,0.79234247,47184.0,47183.0,0.21031038]
[1641028361622,0.81411599,47184.0,47183.0,0.21031038]
[1641028361824,0.62165476,47184.0,47183.0,0.21031038]
[1641028362626,0.64010231,47184.0,47183.0,0.21031038]
[1641028363226,0.60767048,47184.0,47183.0,0.21031038]
[1641028363428,0.26836248,47184.0,47183.0,0.21031038]
[1641028363628,0.62785278,47184.0,47183.0,0.21031038]
[1641028363825,0.60940523,47184.0,47183.0,0.21031038]
[1641028364676,0.44493113,47184.0,47183.0,0.21031038]
[1641028364877,1.28753565,47184.0,47183.0,0.21031038]
[1641028365276,1.3058955,47184.0,47183.0,0.21031038]
[1641028365476,1.2857132,47184.0,47183.0,0.21031038]
[1641028365678,0.46370168,47184.0,47183.0,0.21031038]
[1641028365878,0.44534183,47184.0,47183.0,0.21031038]
[1641028366678,0.46508786,47184.0,47183.0,0.21031038]
[1641028366976,0.44449486,47184.0,47183.0,0.21031038]
[1641028367777,1.30809802,47184.0,47183.0,0.21031038]
[1641028368029,1.28835199,47184.0,47183.0,0.21031038]
[1641028368633,1.5091116,47184.0,47183.0,0.21031038]
[1641028368835,1.48811296,47184.0,47183.0,0.21031038]
[1641028369134,0.94047132,47184.0,47183.0,0.21031038]
[1641028369733,0.96097327,47184.0,47183.0,0.21031038]
[1641028369933,0.94021366,47184.0,47183.0,0.21031038]
[1641028370136,1.14142082,47184.0,47183.0,0.21031038]
[1641028370837,1.14125118,47184.0,47183.0,0.21031038]
[1641028371788,1.15939141,47184.0,47183.0,0.21031038]
[1641028371988,1.1390591,47184.0,47183.0,0.21031038]
[1641028372589,1.1604935,47184.0,47183.0,0.21031038]
[1641028372789,1.14235327,47184.0,47183.0,0.21031038]
[1641028373590,1.16058928,47184.0,47183.0,0.21031038]
[1641028373793,1.13915488,47184.0,47183.0,0.21031038]
[1641028374296,0.93915488,47184.0,47183.0,0.21031038]
[1641028374694,0.95914141,47184.0,47183.0,0.21031038]
[1641028374893,0.9409054,47184.0,47183.0,0.21031038]
[1641028375634,0.96127905,47184.0,47183.0,0.21031038]
[1641028375835,0.94129252,47184.0,47183.0,0.21031038]
[1641028376035,1.14129252,47184.0,47183.0,0.21031038]
[1641028376635,1.15987298,47184.0,47183.0,0.21031038]
[1641028376838,1.13949933,47184.0,47183.0,0.21031038]
[1641028377636,1.15807705,47184.0,47183.0,0.21031038]
[1641028377936,1.13949659,47184.0,47183.0,0.21031038]
[1641028378738,1.1582257,47184.0,47183.0,0.21031038]
[1641028378938,1.13964798,47184.0,47183.0,0.21031038]
[1641028379776,1.16016605,47184.0,47183.0,0.21031038]
[1641028379976,1.14143694,47184.0,47183.0,0.21031038]
[1641028380775,1.15999256,47184.0,47183.0,0.21031038]
[1641028380980,1.13947449,47184.0,47183.0,0.21031038]
[1641028381880,1.14075147,47184.0,47183.0,0.21031038]
[1641028383329,1.16224729,47184.0,47183.0,0.21031038]
[1641028383532,1.14241469,47184.0,47183.0,0.21031038]
[1641028383733,1.16172256,47184.0,47183.0,0.21031038]
[1641028383935,1.14022674,47184.0,47183.0,0.21031038]
[1641028384734,1.15922671,47184.0,47183.0,0.21031038]
[1641028385135,1.12091887,47184.0,47183.0,0.21031038]
[1641028385537,0.68727988,47184.0,47183.0,0.21031038]
[1641028385938,0.70897263,47184.0,47183.0,0.21031038]
[1641028386339,0.65596363,47184.0,47183.0,0.21031038]
[1641028386538,1.28020933,47184.0,47183.0,0.54353113]
[1641028386773,1.29988975,47184.0,47183.0,0.54353113]
[1641028386974,1.278197,47184.0,47183.0,0.54353113]
[1641028387374,0.3146433,47184.0,47183.0,0.54353113]
[1641028387775,0.88310295,47184.0,47183.0,0.80939554]
[1641028387977,0.86342253,47184.0,47183.0,0.80908516]
[1641028388579,0.30577532,47184.0,47183.0,0.80908516]
[1641028388782,0.30577532,47184.0,47183.0,1.14839316]
[1641028389382,0.03882839,47184.0,47183.0,1.14839316]
[1641028389582,0.86134358,47184.0,47183.0,1.14839316]
[1641028389784,0.88263996,47184.0,47183.0,1.14839316]
[1641028389982,0.86426125,47184.0,47183.0,1.14839316]
[1641028390182,0.02129638,47184.0,47183.0,1.14839316]
[1641028390833,0.03971219,47184.0,47183.0,1.14839316]
[1641028391034,0.01841581,47184.0,47183.0,1.14839316]
[1641028392033,0.97298645,47194.0,47185.0,0.24123476]
[1641028392034,1.02298645,47194.0,47185.0,0.24123476]
[1641028392237,0.05943275,47194.0,47186.0,0.24481392]
[1641028392439,0.10943275,47194.0,47186.0,0.24506953]
[1641028392635,0.00943275,47194.0,47186.0,0.24506953]
[1641028392834,0.99462668,47194.0,47186.0,0.24506953]
[1641028393635,0.052993,47192.0,47186.0,0.24506953]
[1641028394286,0.02936354,47194.0,47186.0,0.24506953]
[1641028394287,0.01993079,47194.0,47186.0,0.24506953]
[1641028394989,0.98207482,47195.0,47186.0,0.24506953]
[1641028395787,0.052992,47193.0,47186.0,0.24506953]
[1641028396490,0.98216401,47195.0,47186.0,0.24506953]
[1641028396790,0.03862213,47195.0,47186.0,0.24634648]
[1641028397088,0.03862213,47195.0,47187.0,0.339308]
[1641028397089,0.02001182,47195.0,47187.0,0.339308]
[1641028397592,0.080784,47189.0,47188.0,0.0002191]
[1641028397790,0.080784,47189.0,47188.0,0.61503892]
[1641028399023,0.080784,47189.0,47188.0,0.66802092]
[1641028399625,0.080784,47189.0,47188.0,0.61503892]
[1641028405622,0.080784,47189.0,47188.0,0.72099692]
[1641028414227,0.080784,47189.0,47188.0,0.72223546]
[1641028415026,0.080784,47189.0,47188.0,0.82223546]
[1641028415225,0.080784,47189.0,47188.0,2.14423546]
[1641028415630,0.080784,47189.0,47188.0,2.04423546]
[1641028415829,0.080784,47189.0,47188.0,1.84423546]
[1641028416028,0.080784,47189.0,47188.0,0.72223546]
[1641028417283,0.080784,47189.0,47188.0,0.72099692]
[1641028417583,0.080784,47189.0,47188.0,0.61503892]
[1641028418382,0.080784,47189.0,47188.0,0.3395271]
[1641028419583,0.080784,47189.0,47188.0,0.57203155]
[1641028422435,0.080784,47189.0,47188.0,0.0002191]
[1641028422834,0.36088768,47189.0,47185.0,0.00027387]
[1641028423034,0.36088768,47189.0,47184.0,0.00029213]
[1641028423035,0.053002,47187.0,47184.0,0.00029213]
[1641028423733,0.03243183,47185.0,47184.0,0.00029213]
[1641028424183,0.08543583,47185.0,47184.0,0.00029213]
[1641028424677,0.053004,47185.0,47184.0,0.00029213]
[1641028426083,0.08543583,47185.0,47184.0,0.00029213]
[1641028426482,0.14239,47189.0,47184.0,0.00029213]
[1641028427934,0.03243183,47185.0,47184.0,0.00029213]